Workbook

Sheet frmodel
A1: Fiscal Regime Calculations: Trinidad & Tobago 0403
A4: Inputs and Assumptions | H4: Fiscal Calculations | AW4: Outputs
A6: Exploration Inputs | H6: ExplorationData | O6: Royalty | Q6: Bonuses+Fees | W6: ELT | AB6: ABEX | AC6: Recoverable Costs | AF6: Recovered Costs | AG6: Profit Oil | AJ6: Income Tax | AN6: CashFlow | AS6: Scenario Rendering | AX6: Government CF Split | BF6: CtrTake Distribution
A8: Input | B8: Description | C8: Units | D8: lo | E8: hi | F8: Qty | H8: year | I8: expex | J8: devex | K8: production | L8: opex_fixed | M8: opex_var | N8: gross_rev | O8: royalty | P8: netrev | Q8: license_fee | R8: annual_charge | S8: trg_fee | T8: tech_asst_bonus | U8: scholarship_fee | V8: prod_bonus | W8: gocf | X8: gocf_cum | Y8: elf1 | Z8: year2 | AA8: elf2 | AB8: abex | AC8: capex_dep | AD8: rcvb_costs | AE8: rcost_ob | AF8: rcvd_cost | AG8: profit_oil | AH8: gov_profitoil | AI8: ct_profitoil | AJ8: tax_allowances | AK8: tax_position | AL8: cf_taxloss | AM8: income_tax | AN8: NCF_ctr | AO8: NCF_gov | AP8: NCF_ctr_PV10 | AQ8: NCF_gov_PV10 | AS8: Iteration | AT8: CtrTake_NCF | AU8: NPV10 | AY8: govt | AZ8: contractor
A9: recoverable_reserves | B9: BOE | C9: BOE | D9: 18562994 | E9: 371259873 | F9: =RANDBETWEEN(D9,E9) -> 310046272 | H9: OB | AS9: 1 | AT9: 0.1206740254 | AU9: 11.78130996 | AX9: NPV0 | AY9: =SUM(AO10:AO39)/SUM(AN10:AO39) -> 0.8894702025 | AZ9: =1-AY9 -> 0.1105297975 | BF9: CtrTake | BG9: =SUMPRODUCT(BF12:BF28,BH12:BH28) -> 0.07388451444
H10: =F11 -> 2019 | I10: =IF(H10<=$F$11+$F$15-1,$F$14/$F$15,0) -> 2 | J10: =IF(H10=$F$11+$F$16,$F$18*$F$19,IF(AND(H10>$F$11+$F$16,H10<$F$11+SUM($F$16:$F$17)),$F$19*(1-$F$18)/($F$17-1),0)) -> 0 | K10: =IFERROR(IF(H10=$B$29,$F$24,IF(H10>$B$29,VLOOKUP(H10-1,$B$29:$C$31,2,TRUE)*K9,0)),0) -> 0 | L10: =IF(SUM(K10:K10)>0,SUM($I$10:$J$39)*$D$35,0) -> 0 | M10: =K10*D$36 -> 0 | N10: =K10*$D$39*365/1000000 -> 0 | O10: =IFERROR(N10*$D$44,0) -> 0 | P10: =IFERROR(N10-O10,0) -> 0 | Q10: =IF(H10="STOP",0,IF(H10=$B$48,$B$49,IF(AND(H10<$B$48+$A$50,H10<>$B$48),Q9,Q9*(1+$B$51)))) -> 5.5 | R10: =C56 -> 0.3 | S10: =IF(H10="STOP",0,IF(H10=$F$11,$C$57,IF(H10<$C$54,S9*(1+$C$55),IF(H10=$C$54,$C$58,IF(H10<$B$29,S9*(1+$C$55),S9*(1+$C$59)))))) -> 0.12 | T10: =C60 -> 0.3 | U10: =C61 -> 0.1 | V10: =IFERROR(VLOOKUP(K10,$A$70:$B$74,2,TRUE),0) -> 0 | W10: =N10-SUM(L10:M10,O10,Q10:V10) -> -6.32 | X10: =IF(H10="STOP",0,SUM(W$10:W10)) -> -6.32 | Y10: =IF(H10<=IF(X10=MAX($X$10:$X$39),H10,0),1,0) -> 0 | Z10: =H10 -> 2019 | AA10: =IF(SUM(Y$10:Y10)<1,1,IF(Y10=1,1,0)) -> 1 | AB10: =K10*$C$62*365/1000000 -> 0 | AC10: =SUM(OFFSET(J10,-$C$63+1,-1,$C$63,2))/$C$63 -> 0.4 | AD10: =SUM(I10,L10:M10,Q10:V10,AB10:AC10) -> 8.72 | AE10: =AD10 -> 8.72 | AF10: =MIN(AE10,P10) -> 0 | AG10: =P10-AF10 -> 0 | AH10: =(IFERROR(VLOOKUP(K10,$B$80:$C$84,2,TRUE),0)+0.7*(($D$39-100)/$D$39)*(1-IFERROR(VLOOKUP(K10,$B$80:$C$84,2,TRUE),0)))*AG10 -> 0 | AI10: =AG10-AH10 -> 0 | AJ10: =SUM(O10,Q10:V10,L10:M10,AB10:AC10) -> 6.72 | AK10: =IF(H10="STOP",0,N10-AJ10+AL9) -> -6.72 | AL10: =IF(AK10<0,AK10,0) -> -6.72 | AM10: =IF(AND(AL10<0,H10=$F$11+$F$12-1),AL10,IF(AK10>0,AK10*$C$64,0)) -> 0 | AN10: =SUM(AF10,AI10)-SUM(I10:J10,L10:M10,AB10,Q10:V10,AM10) -> -8.32 | AO10: =IF(N10>0,N10-AN10,0) -> 0 | AP10: =IF(H10="STOP",0,AN10/(1+$C$65)^($H10-$F$11)) -> -8.32 | AQ10: =IF(H10="STOP",0,AO10/(1+$C$65)^($H10-$F$11)) -> 0 | AS10: 2 | AT10: 0.1394485542 | AU10: 123.1458368 | AX10: NPV10 | AY10: =SUM(AQ10:AQ39)/SUM(AP10:AQ39) -> 1.006383316 | AZ10: =1-AY10 -> -0.006383315616
A11: Licence Start | D11: 2015 | E11: 2020 | F11: =RANDBETWEEN(D11,E11) -> 2019 | H11: =IF(COUNT(H$10:H10)<$F$12,H10+1,"STOP") -> 2020 | I11: 2 | J11: 0 | K11: 0 | L11: 0 | M11: 0 | N11: =K11*$D$39*365/1000000 -> 0 | O11: =IFERROR(N11*$D$44,"") -> 0 | P11: =N11-O11 -> 0 | Q11: 5.5 | R11: =IF(H11="STOP",0,R10*(1+$C$55)) -> 0.312 | S11: 0.1248 | U11: =IF(H11="STOP",0,U10*(1+$C$55)) -> 0.104 | V11: 0 | W11: -6.0408 | X11: =IF(H11="STOP",0,SUM(W$10:W11)) -> -12.3608 | Y11: 0 | Z11: 2020 | AA11: =IF(SUM(Y$10:Y11)<1,1,IF(Y11=1,1,0)) -> 1 | AB11: 0 | AC11: 0.8 | AD11: =SUM(I11,L11:M11,Q11:V11,AB11:AC11) -> 8.8408 | AE11: =IF(H11="STOP",0,AD11+AE10-AF10) -> 17.5608 | AF11: 0 | AG11: 0 | AH11: 0 | AI11: =AG11-AH11 -> 0 | AJ11: 6.8408 | AK11: =IF(H11="STOP",0,N11-AJ11+AL10) -> -13.5608 | AL11: =IF(AK11<0,AK11,0) -> -13.5608 | AM11: 0 | AN11: -8.0408 | AO11: 0 | AP11: -7.309818182 | AQ11: =IF(H11="STOP",0,AO11/(1+$C$65)^($H11-$F$11)) -> 0 | AS11: 3 | AT11: 0.1291768363 | AU11: -21.85887144 | BF11: ctr_take | BG11: Count of Iterations | BH11: probability
A12: License Duration | D12: 12 | E12: 40 | F12: =RANDBETWEEN(D12,E12) -> 22 | H12: =IF(COUNT(H$10:H11)<$F$12,H11+1,"STOP") -> 2021 | I12: 0 | J12: 0 | K12: 0 | L12: 0 | M12: 0 | N12: =K12*$D$39*365/1000000 -> 0 | O12: 0 | P12: =N12-O12 -> 0 | Q12: 5.5 | R12: =IF(H12="STOP",0,R11*(1+$C$55)) -> 0.32448 | S12: 0.129792 | U12: =IF(H12="STOP",0,U11*(1+$C$55)) -> 0.10816 | V12: 0 | W12: -6.062432 | X12: =IF(H12="STOP",0,SUM(W$10:W12)) -> -18.423232 | Y12: 0 | Z12: 2021 | AA12: =IF(SUM(Y$10:Y12)<1,1,IF(Y12=1,1,0)) -> 1 | AB12: 0 | AC12: 0.8 | AD12: 6.862432 | AE12: =IF(H12="STOP",0,AD12+AE11-AF11) -> 24.423232 | AF12: 0 | AG12: 0 | AH12: 0 | AI12: 0 | AJ12: 6.862432 | AK12: -20.423232 | AL12: =IF(AK12<0,AK12,0) -> -20.423232 | AM12: 0 | AN12: -6.062432 | AO12: 0 | AP12: -5.01027438 | AQ12: 0 | AS12: 4 | AT12: 0.1327474057 | AU12: -1038.793028 | BF12: -0.2 | BG12: =FREQUENCY(AT9:AT1008,BF12:BF24) -> 0 | BH12: =BG12/SUM($BG$12:$BG$24) -> 0
H13: =IF(COUNT(H$10:H12)<$F$12,H12+1,"STOP") -> 2022 | I13: 0 | J13: 3475.521097 | K13: 5000 | L13: 89.44254248 | M13: =K13*D$36 -> 0.5 | N13: =K13*$D$39*365/1000000 -> 200.75 | O13: 0 | P13: 200.75 | Q13: 5.5 | R13: 0.3374592 | S13: 0.15 | U13: 0.1124864 | V13: 0 | W13: 104.7075119 | X13: =IF(H13="STOP",0,SUM(W$10:W13)) -> 86.28427992 | Y13: 0 | Z13: 2022 | AA13: =IF(SUM(Y$10:Y13)<1,1,IF(Y13=1,1,0)) -> 1 | AB13: 0.45625 | AC13: 695.9042193 | AD13: 792.4029574 | AE13: 816.8261894 | AF13: 200.75 | AG13: 0 | AH13: 0 | AI13: 0 | AJ13: 792.4029574 | AK13: -612.0761894 | AL13: -612.0761894 | AM13: 0 | AN13: -3371.269835 | AO13: 3572.019835 | AP13: -2532.884925 | AQ13: 2683.711371 | AS13: 5 | AT13: -0.0736454685 | AU13: -1752.57785 | AX13: Project NPV (Contractor) | BF13: -0.15 | BG13: 0 | BH13: =BG13/SUM($BG$12:$BG$24) -> 0
A14: expex total | D14: 2 | E14: 4 | F14: =RANDBETWEEN(D14,E14) -> 4 | H14: =IF(COUNT(H$10:H13)<$F$12,H13+1,"STOP") -> 2023 | I14: 0 | J14: 1489.509041 | K14: 7500 | L14: 89.44254248 | M14: 0.75 | N14: =K14*$D$39*365/1000000 -> 301.125 | O14: 0 | P14: 301.125 | Q14: 5.5 | R14: 0.350957568 | S14: 0.150375 | U14: 0.116985856 | V14: 0 | W14: 204.8141391 | X14: =IF(H14="STOP",0,SUM(W$10:W14)) -> 291.098419 | Y14: 0 | Z14: 2023 | AA14: =IF(SUM(Y$10:Y14)<1,1,IF(Y14=1,1,0)) -> 1 | AB14: 0.684375 | AC14: 993.8060276 | AD14: 1090.801264 | AE14: 1706.877453 | AF14: 301.125 | AG14: 0 | AH14: 0 | AI14: 0 | AJ14: 1090.801264 | AK14: -1401.752453 | AL14: -1401.752453 | AM14: 0 | AN14: =SUM(AF14,AI14)-SUM(I14:J14,L14:M14,AB14,Q14:V14,AM14) -> -1285.379277 | AO14: 1586.504277 | AP14: =IF(H14="STOP",0,AN14/(1+$C$65)^($H14-$F$11)) -> -877.9313417 | AQ14: =IF(H14="STOP",0,AO14/(1+$C$65)^($H14-$F$11)) -> 1083.603768 | AS14: 6 | AT14: -0.07740515999 | AU14: -3756.762195 | BF14: -0.1 | BG14: 35 | BH14: 0.09186351706
A15: expex_dur | D15: 1 | E15: 2 | F15: =RANDBETWEEN(D15,E15) -> 2 | H15: =IF(COUNT(H$10:H14)<$F$12,H14+1,"STOP") -> 2024 | I15: 0 | J15: 0 | K15: 11250 | L15: 89.44254248 | M15: 1.125 | N15: 451.6875 | O15: 0 | P15: 451.6875 | Q15: 5.83 | R15: 0.3649958707 | S15: 0.1507509375 | U15: 0.1216652902 | V15: 0 | W15: 354.6525454 | X15: =IF(H15="STOP",0,SUM(W$10:W15)) -> 645.7509644 | Y15: 0 | Z15: 2024 | AA15: =IF(SUM(Y$10:Y15)<1,1,IF(Y15=1,1,0)) -> 1 | AB15: 1.0265625 | AC15: 993.4060276 | AD15: 1091.467545 | AE15: 2497.219998 | AF15: 451.6875 | AG15: 0 | AH15: 0 | AI15: 0 | AJ15: 1091.467545 | AK15: -2041.532498 | AL15: -2041.532498 | AM15: 0 | AN15: 353.6259829 | AO15: 98.06151708 | AP15: 219.5739132 | AQ15: 60.88848693 | AS15: 7 | AT15: 0.1379654978 | AU15: 88.78522937 | AX15: NPV10 MMUSD | AY15: =SUM(AP10:AP39) -> -72.27223683 | BF15: -0.05 | BG15: 32 | BH15: 0.08398950131
A16: devex start | D16: 2 | E16: 4 | F16: =RANDBETWEEN(D16,E16) -> 3 | H16: =IF(COUNT(H$10:H15)<$F$12,H15+1,"STOP") -> 2025 | I16: 0 | J16: 0 | K16: 16875 | L16: 89.44254248 | M16: 1.6875 | N16: 677.53125 | O16: 0 | P16: 677.53125 | Q16: 6.1798 | R16: 0.3795957055 | S16: 0.1511278148 | U16: 0.1265319018 | V16: 0 | W16: 579.5641521 | X16: =IF(H16="STOP",0,SUM(W$10:W16)) -> 1225.315117 | Y16: 0 | Z16: 2025 | AA16: =IF(SUM(Y$10:Y16)<1,1,IF(Y16=1,1,0)) -> 1 | AB16: 1.53984375 | AC16: 993.0060276 | AD16: 1092.512969 | AE16: 3138.045467 | AF16: 677.53125 | AG16: 0 | AH16: 0 | AI16: 0 | AJ16: 1092.512969 | AK16: -2456.514217 | AL16: -2456.514217 | AM16: 0 | AN16: 578.0243083 | AO16: 99.50694166 | AP16: 326.279653 | AQ16: 56.16907442 | AS16: 8 | AT16: 0.06370643638 | AU16: 1212.047884 | BF16: 0 | BG16: 44 | BH16: 0.1154855643
A17: devex dur | D17: 1 | E17: 3 | F17: =RANDBETWEEN(D17,E17) -> 2 | H17: =IF(COUNT(H$10:H16)<$F$12,H16+1,"STOP") -> 2026 | I17: 0 | J17: 0 | K17: 25312.5 | L17: 89.44254248 | M17: 2.53125 | N17: 1016.296875 | O17: 0 | P17: 1016.296875 | Q17: 6.550588 | R17: 0.3947795338 | S17: 0.1515056344 | U17: 0.1315931779 | V17: 1.5 | W17: 915.5946162 | X17: =IF(H17="STOP",0,SUM(W$10:W17)) -> 2140.909733 | Y17: 0 | Z17: 2026 | AA17: =IF(SUM(Y$10:Y17)<1,1,IF(Y17=1,1,0)) -> 1 | AB17: 2.309765625 | AC17: 993.0060276 | AD17: 1096.018052 | AE17: 3556.532269 | AF17: 1016.296875 | AG17: 0 | AH17: 0 | AI17: 0 | AJ17: 1096.018052 | AK17: -2536.235394 | AL17: -2536.235394 | AM17: 0 | AN17: 913.2848505 | AO17: 103.0120245 | AP17: 468.6595353 | AQ17: 52.86145662 | AS17: 9 | AT17: 0.1380873682 | AU17: 392.6192555 | BF17: 0.05 | BG17: 48 | BH17: 0.125984252
A18: devex y1 weight | D18: 4 | E18: 8 | F18: =RANDBETWEEN(D18,E18)/10 -> 0.7 | H18: =IF(COUNT(H$10:H17)<$F$12,H17+1,"STOP") -> 2027 | I18: 0 | J18: 0 | K18: 37968.75 | L18: 89.44254248 | M18: 3.796875 | N18: 1524.445312 | O18: 0 | P18: 1524.445312 | Q18: 6.94362328 | R18: 0.4105707151 | S18: 0.1518843985 | U18: 0.136856905 | V18: 1.5 | W18: 1422.06296 | X18: =IF(H18="STOP",0,SUM(W$10:W18)) -> 3562.972692 | Y18: 0 | Z18: 2027 | AA18: =IF(SUM(Y$10:Y18)<1,1,IF(Y18=1,1,0)) -> 1 | AB18: 3.464648438 | AC18: 297.9018083 | AD18: 403.7488095 | AE18: 2943.984203 | AF18: 1524.445312 | AG18: 0 | AH18: 0 | AI18: 0 | AJ18: 403.7488095 | AK18: -1415.538891 | AL18: -1415.538891 | AM18: 0 | AN18: 1418.598311 | AO18: 105.8470012 | AP18: 661.7865818 | AQ18: 49.37840724 | AS18: 10 | AT18: -0.1068425394 | AU18: -855.4020725 | AX18: Production Profile | BF18: 0.1 | BG18: 49 | BH18: 0.1286089239
A19: devex total | C19: MMUSD | D19: 60000 | E19: 70000 | F19: =F9/RANDBETWEEN(D19,E19) -> 4965.030138 | H19: =IF(COUNT(H$10:H18)<$F$12,H18+1,"STOP") -> 2028 | I19: 0 | J19: 0 | K19: 56953.125 | L19: 89.44254248 | M19: 5.6953125 | N19: 2286.667969 | O19: 0 | P19: 2286.667969 | Q19: 7.360240677 | R19: 0.4269935437 | S19: 0.1522641095 | U19: 0.1423311812 | V19: 2 | W19: 2181.448284 | X19: =IF(H19="STOP",0,SUM(W$10:W19)) -> 5744.420977 | Y19: 0 | Z19: 2028 | AA19: =IF(SUM(Y$10:Y19)<1,1,IF(Y19=1,1,0)) -> 1 | AB19: 5.196972656 | AC19: 0 | AD19: 110.4166572 | AE19: 1529.955548 | AF19: 1529.955548 | AG19: 756.7124206 | AH19: 459.1180632 | AI19: 297.5943574 | AJ19: 110.4166572 | AK19: 760.7124206 | AL19: 0 | AM19: 190.1781052 | AN19: 1526.955143 | AO19: 759.7128255 | AP19: 647.5780396 | AQ19: 322.1924 | AS19: 11 | AT19: 0.1399302277 | AU19: 377.6855811 | BF19: 0.15 | BG19: 173 | BH19: 0.4540682415
H20: =IF(COUNT(H$10:H19)<$F$12,H19+1,"STOP") -> 2029 | I20: 0 | J20: 0 | K20: 85429.6875 | L20: 89.44254248 | M20: 8.54296875 | N20: 3430.001953 | O20: 0 | P20: 3430.001953 | Q20: 7.801855117 | R20: 0.4440732855 | S20: 0.1526447697 | U20: 0.1480244285 | V20: 3 | W20: 3320.469844 | X20: =IF(H20="STOP",0,SUM(W$10:W20)) -> 9064.890821 | Y20: 0 | Z20: 2029 | AA20: =IF(SUM(Y$10:Y20)<1,1,IF(Y20=1,1,0)) -> 1 | AB20: 7.795458984 | AC20: 0 | AD20: 117.3275678 | AE20: 117.3275678 | AF20: 117.3275678 | AG20: 3312.674385 | AH20: 2071.927252 | AI20: 1240.747133 | AJ20: 117.3275678 | AK20: 3312.674385 | AL20: 0 | AM20: 828.1685963 | AN20: 412.5785371 | AO20: 3017.423416 | AP20: 159.0668863 | AQ20: 1163.347349 | AS20: 12 | AT20: -0.105916298 | AU20: -986.976756 | BF20: 0.2 | BG20: 0 | BH20: 0
H21: =IF(COUNT(H$10:H20)<$F$12,H20+1,"STOP") -> 2030 | I21: 0 | J21: 0 | K21: 85429.6875 | L21: 89.44254248 | M21: 8.54296875 | N21: 3430.001953 | O21: 0 | P21: 3430.001953 | Q21: 8.269966424 | R21: 0.4618362169 | S21: 0.1530263817 | U21: 0.1539454056 | V21: 3 | W21: 3319.977667 | X21: =IF(H21="STOP",0,SUM(W$10:W21)) -> 12384.86849 | Y21: 0 | Z21: 2030 | AA21: =IF(SUM(Y$10:Y21)<1,1,IF(Y21=1,1,0)) -> 1 | AB21: 7.795458984 | AC21: 0 | AD21: 117.8197446 | AE21: 117.8197446 | AF21: 117.8197446 | AG21: 3312.182208 | AH21: 2071.619418 | AI21: 1240.562791 | AJ21: 117.8197446 | AK21: 3312.182208 | AL21: 0 | AM21: 828.0455521 | AN21: 412.5172387 | AO21: 3017.484714 | AP21: 144.5847756 | AQ21: 1057.609984 | AS21: 13 | AT21: 0.07898586707 | AU21: -1354.023046 | BF21: 0.25 | BG21: 0 | BH21: 0
A22: Production Schedule | H22: =IF(COUNT(H$10:H21)<$F$12,H21+1,"STOP") -> 2031 | I22: 0 | J22: 0 | K22: 80303.90625 | L22: 89.44254248 | M22: 8.030390625 | N22: 3224.201836 | O22: 0 | P22: 3224.201836 | Q22: 8.76616441 | R22: 0.4803096656 | S22: 0.1534089476 | U22: 0.1601032219 | V22: 3 | W22: 3114.168917 | X22: =IF(H22="STOP",0,SUM(W$10:W22)) -> 15499.0374 | Y22: 0 | Z22: 2031 | AA22: =IF(SUM(Y$10:Y22)<1,1,IF(Y22=1,1,0)) -> 1 | AB22: 7.327731445 | AC22: 0 | AD22: 117.3606508 | AE22: 117.3606508 | AF22: 117.3606508 | AG22: 3106.841185 | AH22: 1943.187941 | AI22: 1163.653244 | AJ22: 117.3606508 | AK22: 3106.841185 | AL22: 0 | AM22: 776.7102963 | AN22: 386.9429476 | AO22: 2837.258888 | AP22: 123.2919478 | AQ22: 904.0381196 | AS22: 14 | AT22: 0 | AU22: 7.2526455 | BF22: 0.3 | BG22: 0 | BH22: 0
A23: devex lag | B23: years after initial devex until produciton starts | D23: 0 | E23: 2 | F23: =RANDBETWEEN(D23,E23) -> 0 | H23: =IF(COUNT(H$10:H22)<$F$12,H22+1,"STOP") -> 2032 | I23: 0 | J23: 0 | K23: 75485.67188 | L23: 89.44254248 | M23: =K23*D$36 -> 7.548567188 | N23: 3030.749726 | O23: 0 | P23: 3030.749726 | Q23: 9.292134275 | R23: 0.4995220522 | S23: 0.15379247 | U23: 0.1665073507 | V23: 3 | W23: 2920.64666 | X23: =IF(H23="STOP",0,SUM(W$10:W23)) -> 18419.68406 | Y23: 0 | Z23: 2032 | AA23: =IF(SUM(Y$10:Y23)<1,1,IF(Y23=1,1,0)) -> 1 | AB23: 6.888067559 | AC23: 0 | AD23: 116.9911334 | AE23: 116.9911334 | AF23: 116.9911334 | AG23: 2913.758592 | AH23: 1822.423556 | AI23: 1091.335036 | AJ23: 116.9911334 | AK23: =IF(H23="STOP",0,N23-AJ23+AL22) -> 2913.758592 | AL23: 0 | AM23: 728.4396481 | AN23: 362.8953883 | AO23: 2667.854337 | AP23: 105.1178676 | AQ23: 772.7823719 | AS23: 15 | AT23: 0.09619615439 | AU23: -2157.271628 | BF23: 0.35 | BG23: 0 | BH23: 0
A24: first yr prod rate | C24: bpd | D24: 1000 | E24: 8000 | F24: 5000 | H24: =IF(COUNT(H$10:H23)<$F$12,H23+1,"STOP") -> 2033 | I24: 0 | J24: 0 | K24: 70956.53156 | L24: 89.44254248 | M24: 7.095653156 | N24: 2848.904742 | O24: 0 | P24: 2848.904742 | Q24: 9.849662331 | R24: 0.5195029343 | S24: 0.1541769512 | U24: 0.1731676448 | V24: 2 | W24: 2739.670037 | X24: =IF(H24="STOP",0,SUM(W$10:W24)) -> 21159.3541 | Y24: 0 | Z24: 2033 | AA24: =IF(SUM(Y$10:Y24)<1,1,IF(Y24=1,1,0)) -> 1 | AB24: 6.474783505 | AC24: 0 | AD24: 115.709489 | AE24: 115.709489 | AF24: 115.709489 | AG24: 2733.195253 | AH24: 1658.304102 | AI24: 1074.891151 | AJ24: 115.709489 | AK24: 2733.195253 | AL24: 0 | AM24: 683.2988133 | AN24: 391.5923381 | AO24: 2457.312404 | AP24: 103.1185016 | AQ24: 647.0871576 | AS24: 16 | AT24: 0.1247995108 | AU24: -374.7458442 | BF24: 0.4 | BG24: 0 | BH24: 0
A25: yrs until plateau | D25: 1 | E25: 4 | F25: =ROUND(F12*RANDBETWEEN(D25,E25)/10,0) -> 7 | H25: =IF(COUNT(H$10:H24)<$F$12,H24+1,"STOP") -> 2034 | I25: 0 | J25: 0 | K25: 66699.13967 | L25: 89.44254248 | M25: 6.669913967 | N25: 2677.970458 | O25: 0 | P25: 2677.970458 | Q25: 10.44064207 | R25: 0.5402830517 | S25: 0.1545623935 | U25: 0.1800943506 | V25: 2 | W25: 2568.542419 | X25: =IF(H25="STOP",0,SUM(W$10:W25)) -> 23727.89652 | Y25: 0 | Z25: 2034 | AA25: =IF(SUM(Y$10:Y25)<1,1,IF(Y25=1,1,0)) -> 1 | AB25: 6.086296495 | AC25: 0 | AD25: 115.5143348 | AE25: 115.5143348 | AF25: 115.5143348 | AG25: 2562.456123 | AH25: 1554.712015 | AI25: 1007.744108 | AJ25: 115.5143348 | AK25: 2562.456123 | AL25: 0 | AM25: 640.6140307 | AN25: 367.1300772 | AO25: 2310.84038 | AP25: 87.88802158 | AQ25: 553.1968144 | AS25: 17 | AT25: 0.04557937558 | AU25: -1159.651619
A26: plateau duration | D26: 1 | E26: 2 | F26: =ROUND(F12*RANDBETWEEN(D26,E26)/10,0) -> 2 | H26: =IF(COUNT(H$10:H25)<$F$12,H25+1,"STOP") -> 2035 | I26: 0 | J26: 0 | K26: 62697.19129 | L26: 89.44254248 | M26: 6.269719129 | N26: 2517.29223 | O26: 0 | P26: 2517.29223 | Q26: 11.0670806 | R26: 0.5618943737 | S26: 0.1549487995 | U26: 0.1872981246 | V26: 2 | W26: 2407.608747 | X26: =IF(H26="STOP",0,SUM(W$10:W26)) -> 26135.50527 | Y26: 0 | Z26: 2035 | AA26: =IF(SUM(Y$10:Y26)<1,1,IF(Y26=1,1,0)) -> 1 | AB26: 5.721118705 | AC26: 0 | AD26: 115.4046022 | AE26: 115.4046022 | AF26: 115.4046022 | AG26: 2401.887628 | AH26: 1457.29073 | AI26: 944.5968981 | AJ26: 115.4046022 | AK26: 2401.887628 | AL26: 0 | AM26: 600.471907 | AN26: 344.1249911 | AO26: 2173.167239 | AP26: 74.89162441 | AQ26: 472.9445082 | AS26: 18 | AT26: 0.1341756144 | AU26: -991.0372164
H27: =IF(COUNT(H$10:H26)<$F$12,H26+1,"STOP") -> 2036 | I27: 0 | J27: 0 | K27: 58935.35981 | L27: 89.44254248 | M27: 5.893535981 | N27: 2366.254696 | O27: 0 | P27: 2366.254696 | Q27: 11.73110543 | R27: 0.5843701487 | S27: 0.1553361715 | U27: 0.1947900496 | V27: 2 | W27: 2256.253016 | X27: =IF(H27="STOP",0,SUM(W$10:W27)) -> 28391.75828 | Y27: 0 | Z27: 2036 | AA27: =IF(SUM(Y$10:Y27)<1,1,IF(Y27=1,1,0)) -> 1 | AB27: 5.377851583 | AC27: 0 | AD27: 115.3795318 | AE27: 115.3795318 | AF27: 115.3795318 | AG27: 2250.875165 | AH27: 1365.66735 | AI27: 885.2078147 | AJ27: 115.3795318 | AK27: 2250.875165 | AL27: 0 | AM27: 562.7187911 | AN27: 322.4890236 | AO27: 2043.765673 | AP27: 63.80273409 | AQ27: 404.3481429 | AS27: 19 | AT27: 0.04436538923 | AU27: -4971.214549
A28: prod_phase | B28: switch_yr | C28: rate | H28: =IF(COUNT(H$10:H27)<$F$12,H27+1,"STOP") -> 2037 | I28: 0 | J28: 0 | K28: 55399.23822 | L28: 89.44254248 | M28: 5.539923822 | N28: 2224.279415 | O28: 0 | P28: 2224.279415 | Q28: 12.43497176 | R28: 0.6077449546 | S28: 0.1557245119 | U28: 0.2025816515 | V28: 2 | W28: 2113.895925 | X28: =IF(H28="STOP",0,SUM(W$10:W28)) -> 30505.65421 | Y28: 0 | Z28: 2037 | AA28: =IF(SUM(Y$10:Y28)<1,1,IF(Y28=1,1,0)) -> 1 | AB28: 5.055180488 | AC28: 0 | AD28: 115.4386697 | AE28: 115.4386697 | AF28: 115.4386697 | AG28: 2108.840745 | AH28: 1279.491194 | AI28: 829.3495512 | AJ28: 115.4386697 | AK28: 2108.840745 | AL28: 0 | AM28: 527.2101862 | AN28: 302.1393649 | AO28: 1922.14005 | AP28: 54.34242056 | AQ28: 345.7137834 | AS28: 20 | AT28: -0.03533976252 | AU28: -5189.836236
A29: prod_start | B29: =F11+F16+F23 -> 2022 | C29: 1.5 | H29: =IF(COUNT(H$10:H28)<$F$12,H28+1,"STOP") -> 2038 | I29: 0 | J29: 0 | K29: 52075.28393 | L29: 89.44254248 | M29: 5.207528393 | N29: 2090.82265 | O29: 0 | P29: 2090.82265 | Q29: 13.18107006 | R29: 0.6320547528 | S29: 0.1561138232 | U29: 0.2106849176 | V29: 2 | W29: 1979.992655 | X29: =IF(H29="STOP",0,SUM(W$10:W29)) -> 32485.64686 | Y29: 0 | Z29: 2038 | AA29: =IF(SUM(Y$10:Y29)<1,1,IF(Y29=1,1,0)) -> 1 | AB29: 4.751869659 | AC29: 0 | AD29: 115.5818641 | AE29: 115.5818641 | AF29: 115.5818641 | AG29: 1975.240786 | AH29: 1198.432455 | AI29: 776.8083308 | AJ29: 115.5818641 | AK29: 1975.240786 | AL29: 0 | AM29: 493.8101964 | AN29: 282.9981344 | AO29: 1807.824515 | AP29: 46.27245636 | AQ29: 295.5937543 | AS29: 21 | AT29: 0.1107187256 | AU29: 384.1751485
A30: plateau_start | B30: =B29+F25 -> 2029 | C30: 1 | H30: =IF(COUNT(H$10:H29)<$F$12,H29+1,"STOP") -> 2039 | I30: 0 | J30: 0 | K30: 48950.76689 | L30: 89.44254248 | M30: 4.895076689 | N30: 1965.373291 | O30: 0 | P30: 1965.373291 | Q30: 13.97193427 | R30: 0.6573369429 | S30: 0.1565041078 | U30: 0.2191123143 | V30: 1.5 | W30: 1854.530784 | X30: =IF(H30="STOP",0,SUM(W$10:W30)) -> 34340.17765 | Y30: 0 | Z30: 2039 | AA30: =IF(SUM(Y$10:Y30)<1,1,IF(Y30=1,1,0)) -> 1 | AB30: 4.466757479 | AC30: 0 | AD30: 115.3092643 | AE30: 115.3092643 | AF30: 115.3092643 | AG30: 1850.064026 | AH30: 1122.484301 | AI30: 727.5797253 | AJ30: 115.3092643 | AK30: 1850.064026 | AL30: 0 | AM30: 462.5160066 | AN30: =SUM(AF30,AI30)-SUM(I30:J30,L30:M30,AB30,Q30:V30,AM30) -> 265.0637187 | AO30: 1700.309572 | AP30: 39.40003281 | AQ30: 252.7401836 | AS30: 22 | AT30: -0.09589532698 | AU30: 363.5517274
A31: plateaut_end | B31: =B30+F26-1 -> 2030 | C31: 0.94 | H31: =IF(COUNT(H$10:H30)<$F$12,H30+1,"STOP") -> 2040 | I31: 0 | J31: 0 | K31: 46013.72088 | L31: 89.44254248 | M31: 4.601372088 | N31: 1847.450893 | O31: 0 | P31: =N31-O31 -> 1847.450893 | Q31: 14.81025032 | R31: 0.6836304206 | S31: 0.1568953681 | U31: 0.2278768069 | V31: 1.5 | W31: 1736.028326 | X31: =IF(H31="STOP",0,SUM(W$10:W31)) -> 36076.20597 | Y31: 1 | Z31: 2040 | AA31: =IF(SUM(Y$10:Y31)<1,1,IF(Y31=1,1,0)) -> 1 | AB31: 4.19875203 | AC31: 0 | AD31: 115.6213195 | AE31: 115.6213195 | AF31: 115.6213195 | AG31: 1731.829574 | AH31: 1050.748234 | AI31: 681.0813397 | AJ31: 115.6213195 | AK31: =IF(H31="STOP",0,N31-AJ31+AL30) -> 1731.829574 | AL31: 0 | AM31: 432.9573935 | AN31: =SUM(AF31,AI31)-SUM(I31:J31,L31:M31,AB31,Q31:V31,AM31) -> 248.1239462 | AO31: 1599.326947 | AP31: 33.52913051 | AQ31: 216.1179635 | AS31: 23 | AT31: 0.09970549763 | AU31: -1222.631141
H32: =IF(COUNT(H$10:H31)<$F$12,H31+1,"STOP") -> STOP | I32: 0 | J32: 0 | K32: 0 | L32: 0 | M32: 0 | N32: 0 | O32: 0 | P32: 0 | Q32: 0 | R32: 0 | S32: 0 | U32: 0 | V32: 0 | W32: 0 | X32: =IF(H32="STOP",0,SUM(W$10:W32)) -> 0 | Y32: 0 | Z32: STOP | AA32: =IF(SUM(Y$10:Y32)<1,1,IF(Y32=1,1,0)) -> 0 | AB32: 0 | AC32: 0 | AD32: 0 | AE32: 0 | AF32: 0 | AG32: 0 | AH32: 0 | AI32: 0 | AJ32: 0 | AK32: 0 | AL32: 0 | AM32: 0 | AN32: 0 | AO32: 0 | AP32: 0 | AQ32: 0 | AS32: 24 | AT32: -0.1059066206 | AU32: -804.1768992
H33: =IF(COUNT(H$10:H32)<$F$12,H32+1,"STOP") -> STOP | I33: 0 | J33: 0 | K33: 0 | L33: 0 | M33: 0 | N33: 0 | O33: 0 | P33: 0 | Q33: 0 | R33: 0 | S33: 0 | U33: 0 | V33: 0 | W33: 0 | X33: =IF(H33="STOP",0,SUM(W$10:W33)) -> 0 | Y33: 0 | Z33: STOP | AA33: =IF(SUM(Y$10:Y33)<1,1,IF(Y33=1,1,0)) -> 0 | AB33: 0 | AC33: 0 | AD33: 0 | AE33: 0 | AF33: 0 | AG33: 0 | AH33: 0 | AI33: 0 | AJ33: 0 | AK33: 0 | AL33: 0 | AM33: 0 | AN33: 0 | AO33: 0 | AP33: 0 | AQ33: 0 | AS33: 25 | AT33: 0.1268471587 | AU33: -426.7687969
A34: Pre-ELT Inputs2 | H34: =IF(COUNT(H$10:H33)<$F$12,H33+1,"STOP") -> STOP | I34: 0 | J34: 0 | K34: 0 | L34: 0 | M34: 0 | N34: 0 | O34: 0 | P34: 0 | Q34: 0 | R34: 0 | S34: 0 | U34: 0 | V34: 0 | W34: 0 | X34: =IF(H34="STOP",0,SUM(W$10:W34)) -> 0 | Y34: 0 | Z34: STOP | AA34: =IF(SUM(Y$10:Y34)<1,1,IF(Y34=1,1,0)) -> 0 | AB34: 0 | AC34: 0 | AD34: 0 | AE34: 0 | AF34: 0 | AG34: 0 | AH34: 0 | AI34: 0 | AJ34: 0 | AK34: 0 | AL34: 0 | AM34: 0 | AN34: 0 | AO34: 0 | AP34: 0 | AQ34: 0 | AS34: 26 | AT34: 0.01104262981 | AU34: -2130.329574
A35: fixed opex multiplier | B35: fixed opex per year | D35: 0.018 | H35: =IF(COUNT(H$10:H34)<$F$12,H34+1,"STOP") -> STOP | I35: 0 | J35: 0 | K35: 0 | L35: 0 | M35: 0 | N35: 0 | O35: 0 | P35: 0 | Q35: 0 | R35: 0 | S35: 0 | U35: 0 | V35: 0 | W35: 0 | X35: =IF(H35="STOP",0,SUM(W$10:W35)) -> 0 | Y35: 0 | Z35: STOP | AA35: =IF(SUM(Y$10:Y35)<1,1,IF(Y35=1,1,0)) -> 0 | AB35: 0 | AC35: 0 | AD35: 0 | AE35: 0 | AF35: 0 | AG35: 0 | AH35: 0 | AI35: 0 | AJ35: 0 | AK35: 0 | AL35: 0 | AM35: 0 | AN35: 0 | AO35: 0 | AP35: 0 | AQ35: 0 | AS35: 27 | AT35: -0.08260318835 | AU35: -779.2646821
A36: var opex multiplier | B36: production-linked multipllier to generate $mm opex cost | D36: 0.0001 | H36: =IF(COUNT(H$10:H35)<$F$12,H35+1,"STOP") -> STOP | I36: 0 | J36: 0 | K36: 0 | L36: 0 | M36: 0 | N36: 0 | O36: 0 | P36: 0 | Q36: 0 | R36: 0 | S36: 0 | U36: 0 | V36: 0 | W36: 0 | X36: =IF(H36="STOP",0,SUM(W$10:W36)) -> 0 | Y36: 0 | Z36: STOP | AA36: =IF(SUM(Y$10:Y36)<1,1,IF(Y36=1,1,0)) -> 0 | AB36: 0 | AC36: 0 | AD36: 0 | AE36: 0 | AF36: 0 | AG36: 0 | AH36: 0 | AI36: 0 | AJ36: 0 | AK36: 0 | AL36: 0 | AM36: 0 | AN36: 0 | AO36: 0 | AP36: 0 | AQ36: 0 | AS36: 28 | AT36: -0.07412905045 | AU36: 21.84027165
A37: abex multiplier | B37: devex linked multiplier to show abex cost in $mm | D37: =0.12 -> 0.12 | H37: =IF(COUNT(H$10:H36)<$F$12,H36+1,"STOP") -> STOP | I37: 0 | J37: 0 | K37: 0 | L37: 0 | M37: 0 | N37: 0 | O37: 0 | P37: 0 | Q37: 0 | R37: 0 | S37: 0 | U37: 0 | V37: 0 | W37: 0 | X37: =IF(H37="STOP",0,SUM(W$10:W37)) -> 0 | Y37: 0 | Z37: STOP | AA37: =IF(SUM(Y$10:Y37)<1,1,IF(Y37=1,1,0)) -> 0 | AB37: 0 | AC37: 0 | AD37: 0 | AE37: 0 | AF37: 0 | AG37: 0 | AH37: 0 | AI37: 0 | AJ37: 0 | AK37: 0 | AL37: 0 | AM37: 0 | AN37: 0 | AO37: 0 | AP37: 0 | AQ37: 0 | AS37: 29 | AT37: 0.008086692207 | AU37: -20617.05146
A38: total abex | D38: =D37*F19 -> 595.8036166 | H38: =IF(COUNT(H$10:H37)<$F$12,H37+1,"STOP") -> STOP | I38: 0 | J38: 0 | K38: 0 | L38: 0 | M38: 0 | N38: 0 | O38: 0 | P38: 0 | Q38: 0 | R38: 0 | S38: 0 | U38: 0 | V38: 0 | W38: 0 | X38: =IF(H38="STOP",0,SUM(W$10:W38)) -> 0 | Y38: 0 | Z38: STOP | AA38: =IF(SUM(Y$10:Y38)<1,1,IF(Y38=1,1,0)) -> 0 | AB38: 0 | AC38: 0 | AD38: 0 | AE38: 0 | AF38: 0 | AG38: 0 | AH38: 0 | AI38: 0 | AJ38: 0 | AK38: 0 | AL38: 0 | AM38: 0 | AN38: 0 | AO38: 0 | AP38: 0 | AQ38: 0 | AS38: 30 | AT38: 0.1393503743 | AU38: -219.7118446
A39: wellhead bbl price | C39: $/bbl | D39: 110 | H39: =IF(COUNT(H$10:H38)<$F$12,H38+1,"STOP") -> STOP | I39: 0 | J39: =IF(H39=$F$11+$F$16,$F$18*$F$19,IF(AND(H39>$F$11+$F$16,H39<$F$11+SUM($F$16:$F$17)),$F$19*(1-$F$18)/($F$17-1),0)) -> 0 | K39: =IFERROR(IF(H39=$B$29,$F$24,IF(H39>$B$29,VLOOKUP(H39-1,$B$29:$C$31,2,TRUE)*K38,0)),0) -> 0 | L39: 0 | M39: =K39*D$36 -> 0 | N39: =K39*$D$39*365/1000000 -> 0 | O39: 0 | P39: =N39-O39 -> 0 | Q39: =IF(H39="STOP",0,IF(H39=$B$48,$B$49,IF(AND(H39<$B$48+$A$50,H39<>$B$48),Q38,Q38*(1+$B$51)))) -> 0 | R39: =IF(H39="STOP",0,R38*(1+$C$55)) -> 0 | S39: =IF(H39="STOP",0,IF(H39=$F$11,$C$57,IF(H39<$C$54,S38*(1+$C$55),IF(H39=$C$54,$C$58,IF(H39<$B$29,S38*(1+$C$55),S38*(1+$C$59)))))) -> 0 | U39: =IF(H39="STOP",0,U38*(1+$C$55)) -> 0 | V39: =IFERROR(VLOOKUP(K39,$A$70:$B$74,2,TRUE),0) -> 0 | W39: =N39-SUM(L39:M39,O39,Q39:V39) -> 0 | X39: =IF(H39="STOP",0,SUM(W$10:W39)) -> 0 | Y39: =IF(H39<=IF(X39=MAX($X$10:$X$39),H39,0),1,0) -> 0 | Z39: =H39 -> STOP | AA39: =IF(SUM(Y$10:Y39)<1,1,IF(Y39=1,1,0)) -> 0 | AB39: =K39*$C$62*365/1000000 -> 0 | AC39: =SUM(OFFSET(J39,-$C$63+1,-1,$C$63,2))/$C$63 -> 0 | AD39: =SUM(I39,L39:M39,Q39:V39,AB39:AC39) -> 0 | AE39: =IF(H39="STOP",0,AD39+AE38-AF38) -> 0 | AF39: =MIN(AE39,P39) -> 0 | AG39: =P39-AF39 -> 0 | AH39: =(IFERROR(VLOOKUP(K39,$B$80:$C$84,2,TRUE),0)+0.7*(($D$39-100)/$D$39)*(1-IFERROR(VLOOKUP(K39,$B$80:$C$84,2,TRUE),0)))*AG39 -> 0 | AI39: =AG39-AH39 -> 0 | AJ39: =SUM(O39,Q39:V39,L39:M39,AB39:AC39) -> 0 | AK39: =IF(H39="STOP",0,N39-AJ39+AL38) -> 0 | AL39: =IF(AK39<0,AK39,0) -> 0 | AM39: =IF(AND(AL39<0,H39=$F$11+$F$12-1),AL39,IF(AK39>0,AK39*$C$64,0)) -> 0 | AN39: =SUM(AF39,AI39)-SUM(I39:J39,L39:M39,AB39,Q39:V39,AM39) -> 0 | AO39: =IF(N39>0,N39-AN39,0) -> 0 | AP39: =IF(H39="STOP",0,AN39/(1+$C$65)^($H39-$F$11)) -> 0 | AQ39: =IF(H39="STOP",0,AO39/(1+$C$65)^($H39-$F$11)) -> 0 | AS39: 31 | AT39: 0.1077899428 | AU39: -1425.021717 | AX39: CashFlow
H40: =IF(COUNT(H$10:H39)<$F$12,H39+1,"STOP") -> STOP | I40: 0 | J40: 0 | K40: 0 | L40: 0 | M40: 0 | N40: 0 | O40: 0 | P40: 0 | Q40: 0 | R40: 0 | S40: 0 | U40: 0 | V40: 0 | W40: 0 | X40: =IF(H40="STOP",0,SUM(W$10:W40)) -> 0 | Y40: 0 | Z40: STOP | AA40: =IF(SUM(Y$10:Y40)<1,1,IF(Y40=1,1,0)) -> 0 | AB40: 0 | AC40: 0 | AD40: 0 | AE40: 0 | AF40: 0 | AG40: 0 | AH40: 0 | AI40: 0 | AJ40: 0 | AK40: 0 | AL40: 0 | AM40: 0 | AN40: 0 | AO40: 0 | AP40: 0 | AQ40: 0 | AS40: 32 | AT40: -0.1001001849 | AU40: -242.4239472
H41: =IF(COUNT(H$10:H40)<$F$12,H40+1,"STOP") -> STOP | I41: 0 | J41: 0 | K41: 0 | L41: 0 | M41: 0 | N41: 0 | O41: 0 | P41: 0 | Q41: 0 | R41: 0 | S41: 0 | U41: 0 | V41: 0 | W41: 0 | X41: =IF(H41="STOP",0,SUM(W$10:W41)) -> 0 | Y41: 0 | Z41: STOP | AA41: =IF(SUM(Y$10:Y41)<1,1,IF(Y41=1,1,0)) -> 0 | AB41: 0 | AC41: 0 | AD41: 0 | AE41: 0 | AF41: 0 | AG41: 0 | AH41: 0 | AI41: 0 | AJ41: 0 | AK41: 0 | AL41: 0 | AM41: 0 | AN41: 0 | AO41: 0 | AP41: 0 | AQ41: 0 | AS41: 33 | AT41: 0.09563493384 | AU41: 565.1006762
A42: Fiscal Terms | H42: =IF(COUNT(H$10:H41)<$F$12,H41+1,"STOP") -> STOP | I42: 0 | J42: 0 | K42: 0 | L42: 0 | M42: 0 | N42: 0 | O42: 0 | P42: 0 | Q42: 0 | R42: 0 | S42: 0 | U42: 0 | V42: 0 | W42: 0 | X42: =IF(H42="STOP",0,SUM(W$10:W42)) -> 0 | Y42: 0 | Z42: STOP | AA42: =IF(SUM(Y$10:Y42)<1,1,IF(Y42=1,1,0)) -> 0 | AB42: 0 | AC42: 0 | AD42: 0 | AE42: 0 | AF42: 0 | AG42: 0 | AH42: 0 | AI42: 0 | AJ42: 0 | AK42: 0 | AL42: 0 | AM42: 0 | AN42: 0 | AO42: 0 | AP42: 0 | AQ42: 0 | AS42: 34 | AT42: -0.09436991742 | AU42: -4020.043892
H43: =IF(COUNT(H$10:H42)<$F$12,H42+1,"STOP") -> STOP | I43: 0 | J43: 0 | K43: 0 | L43: 0 | M43: 0 | N43: 0 | O43: 0 | P43: 0 | Q43: 0 | R43: 0 | S43: 0 | U43: 0 | V43: 0 | W43: 0 | X43: =IF(H43="STOP",0,SUM(W$10:W43)) -> 0 | Y43: 0 | Z43: STOP | AA43: =IF(SUM(Y$10:Y43)<1,1,IF(Y43=1,1,0)) -> 0 | AB43: 0 | AC43: 0 | AD43: 0 | AE43: 0 | AF43: 0 | AG43: 0 | AH43: 0 | AI43: 0 | AJ43: 0 | AK43: 0 | AL43: 0 | AM43: 0 | AN43: 0 | AO43: 0 | AP43: 0 | AQ43: 0 | AS43: 35 | AT43: -0.1060005142 | AU43: -689.9869107
A44: royalty rate | D44: 0 | H44: =IF(COUNT(H$10:H43)<$F$12,H43+1,"STOP") -> STOP | I44: 0 | J44: 0 | K44: 0 | L44: 0 | M44: 0 | N44: 0 | O44: 0 | P44: 0 | Q44: 0 | R44: 0 | S44: 0 | U44: 0 | V44: 0 | W44: 0 | X44: =IF(H44="STOP",0,SUM(W$10:W44)) -> 0 | Y44: 0 | Z44: STOP | AA44: =IF(SUM(Y$10:Y44)<1,1,IF(Y44=1,1,0)) -> 0 | AB44: 0 | AC44: 0 | AD44: 0 | AE44: 0 | AF44: 0 | AG44: 0 | AH44: 0 | AI44: 0 | AJ44: 0 | AK44: 0 | AL44: 0 | AM44: 0 | AN44: 0 | AO44: 0 | AP44: 0 | AQ44: 0 | AS44: 36 | AT44: 0.1135569709 | AU44: -66.41464103
H45: =IF(COUNT(H$10:H44)<$F$12,H44+1,"STOP") -> STOP | I45: 0 | J45: 0 | K45: 0 | L45: 0 | M45: 0 | N45: 0 | O45: 0 | P45: 0 | Q45: 0 | R45: 0 | S45: 0 | U45: 0 | V45: 0 | W45: 0 | X45: =IF(H45="STOP",0,SUM(W$10:W45)) -> 0 | Y45: 0 | Z45: STOP | AA45: =IF(SUM(Y$10:Y45)<1,1,IF(Y45=1,1,0)) -> 0 | AB45: 0 | AC45: 0 | AD45: 0 | AE45: 0 | AF45: 0 | AG45: 0 | AH45: 0 | AI45: 0 | AJ45: 0 | AK45: 0 | AL45: 0 | AM45: 0 | AN45: 0 | AO45: 0 | AP45: 0 | AQ45: 0 | AS45: 37 | AT45: 0.1115332635 | AU45: -305.5043866
A46: License Fees | H46: =IF(COUNT(H$10:H45)<$F$12,H45+1,"STOP") -> STOP | I46: 0 | J46: 0 | K46: 0 | L46: 0 | M46: 0 | N46: 0 | O46: 0 | P46: 0 | Q46: 0 | R46: 0 | S46: 0 | U46: 0 | V46: 0 | W46: 0 | X46: =IF(H46="STOP",0,SUM(W$10:W46)) -> 0 | Y46: 0 | Z46: STOP | AA46: =IF(SUM(Y$10:Y46)<1,1,IF(Y46=1,1,0)) -> 0 | AB46: 0 | AC46: 0 | AD46: 0 | AE46: 0 | AF46: 0 | AG46: 0 | AH46: 0 | AI46: 0 | AJ46: 0 | AK46: 0 | AL46: 0 | AM46: 0 | AN46: 0 | AO46: 0 | AP46: 0 | AQ46: 0 | AS46: 38 | AT46: 0 | AU46: -95.82027442
H47: =IF(COUNT(H$10:H46)<$F$12,H46+1,"STOP") -> STOP | I47: 0 | J47: 0 | K47: 0 | L47: 0 | M47: 0 | N47: 0 | O47: 0 | P47: 0 | Q47: 0 | R47: 0 | S47: 0 | U47: 0 | V47: 0 | W47: 0 | X47: =IF(H47="STOP",0,SUM(W$10:W47)) -> 0 | Y47: 0 | Z47: STOP | AA47: =IF(SUM(Y$10:Y47)<1,1,IF(Y47=1,1,0)) -> 0 | AB47: 0 | AC47: 0 | AD47: 0 | AE47: 0 | AF47: 0 | AG47: 0 | AH47: 0 | AI47: 0 | AJ47: 0 | AK47: 0 | AL47: 0 | AM47: 0 | AN47: 0 | AO47: 0 | AP47: 0 | AQ47: 0 | AS47: 39 | AT47: 0.06018373926 | AU47: -912.8011751
A48: prod_start_yr | B48: =F11+F23 -> 2019 | H48: =IF(COUNT(H$10:H47)<$F$12,H47+1,"STOP") -> STOP | I48: 0 | J48: 0 | K48: 0 | L48: 0 | M48: 0 | N48: 0 | O48: 0 | P48: 0 | Q48: 0 | R48: 0 | S48: 0 | U48: 0 | V48: 0 | W48: 0 | X48: =IF(H48="STOP",0,SUM(W$10:W48)) -> 0 | Y48: 0 | Z48: STOP | AA48: =IF(SUM(Y$10:Y48)<1,1,IF(Y48=1,1,0)) -> 0 | AB48: 0 | AC48: 0 | AD48: 0 | AE48: 0 | AF48: 0 | AG48: 0 | AH48: 0 | AI48: 0 | AJ48: 0 | AK48: 0 | AL48: 0 | AM48: 0 | AN48: 0 | AO48: 0 | AP48: 0 | AQ48: 0 | AS48: 40 | AT48: 0.1184561902 | AU48: -495.4560775
A49: 1 | B49: 5.5 | H49: =IF(COUNT(H$10:H48)<$F$12,H48+1,"STOP") -> STOP | I49: 0 | J49: 0 | K49: 0 | L49: 0 | M49: 0 | N49: 0 | O49: 0 | P49: 0 | Q49: 0 | R49: 0 | S49: 0 | U49: 0 | V49: 0 | W49: 0 | X49: =IF(H49="STOP",0,SUM(W$10:W49)) -> 0 | Y49: 0 | Z49: STOP | AA49: =IF(SUM(Y$10:Y49)<1,1,IF(Y49=1,1,0)) -> 0 | AB49: 0 | AC49: 0 | AD49: 0 | AE49: 0 | AF49: 0 | AG49: 0 | AH49: 0 | AI49: 0 | AJ49: 0 | AK49: 0 | AL49: 0 | AM49: 0 | AN49: 0 | AO49: 0 | AP49: 0 | AQ49: 0 | AS49: 41 | AT49: 0.00899099753 | AU49: 235.9999886
A50: 5 | B50: 0.5 | H50: =IF(COUNT(H$10:H49)<$F$12,H49+1,"STOP") -> STOP | I50: 0 | J50: 0 | K50: 0 | L50: 0 | M50: 0 | N50: 0 | O50: 0 | P50: 0 | Q50: 0 | R50: 0 | S50: 0 | U50: 0 | V50: 0 | W50: 0 | X50: =IF(H50="STOP",0,SUM(W$10:W50)) -> 0 | Y50: 0 | Z50: STOP | AA50: =IF(SUM(Y$10:Y50)<1,1,IF(Y50=1,1,0)) -> 0 | AB50: 0 | AC50: 0 | AD50: 0 | AE50: 0 | AF50: 0 | AG50: 0 | AH50: 0 | AI50: 0 | AJ50: 0 | AK50: 0 | AL50: 0 | AM50: 0 | AN50: 0 | AO50: 0 | AP50: 0 | AQ50: 0 | AS50: 42 | AT50: -0.1058490827 | AU50: -2958.026674
A51: 100 | B51: 0.06 | H51: =IF(COUNT(H$10:H50)<$F$12,H50+1,"STOP") -> STOP | I51: 0 | J51: 0 | K51: 0 | L51: 0 | M51: 0 | N51: 0 | O51: 0 | P51: 0 | Q51: 0 | R51: 0 | S51: 0 | U51: 0 | V51: 0 | W51: 0 | X51: =IF(H51="STOP",0,SUM(W$10:W51)) -> 0 | Y51: 0 | Z51: STOP | AA51: =IF(SUM(Y$10:Y51)<1,1,IF(Y51=1,1,0)) -> 0 | AB51: 0 | AC51: 0 | AD51: 0 | AE51: 0 | AF51: 0 | AG51: 0 | AH51: 0 | AI51: 0 | AJ51: 0 | AK51: 0 | AL51: 0 | AM51: 0 | AN51: 0 | AO51: 0 | AP51: 0 | AQ51: 0 | AS51: 43 | AT51: -0.0462461547 | AU51: -465.4870176
H52: =IF(COUNT(H$10:H51)<$F$12,H51+1,"STOP") -> STOP | I52: 0 | J52: 0 | K52: 0 | L52: 0 | M52: 0 | N52: 0 | O52: 0 | P52: 0 | Q52: 0 | R52: 0 | S52: 0 | U52: 0 | V52: 0 | W52: 0 | X52: =IF(H52="STOP",0,SUM(W$10:W52)) -> 0 | Y52: 0 | Z52: STOP | AA52: =IF(SUM(Y$10:Y52)<1,1,IF(Y52=1,1,0)) -> 0 | AB52: 0 | AC52: 0 | AD52: 0 | AE52: 0 | AF52: 0 | AG52: 0 | AH52: 0 | AI52: 0 | AJ52: 0 | AK52: 0 | AL52: 0 | AM52: 0 | AN52: 0 | AO52: 0 | AP52: 0 | AQ52: 0 | AS52: 44 | AT52: 0.1226679905 | AU52: 309.842294
A53: term | B53: description | C53: qty | H53: =IF(COUNT(H$10:H52)<$F$12,H52+1,"STOP") -> STOP | I53: 0 | J53: 0 | K53: 0 | L53: 0 | M53: 0 | N53: 0 | O53: 0 | P53: 0 | Q53: 0 | R53: 0 | S53: 0 | U53: 0 | V53: 0 | W53: 0 | X53: =IF(H53="STOP",0,SUM(W$10:W53)) -> 0 | Y53: 0 | Z53: STOP | AA53: =IF(SUM(Y$10:Y53)<1,1,IF(Y53=1,1,0)) -> 0 | AB53: 0 | AC53: 0 | AD53: 0 | AE53: 0 | AF53: 0 | AG53: 0 | AH53: 0 | AI53: 0 | AJ53: 0 | AK53: 0 | AL53: 0 | AM53: 0 | AN53: 0 | AO53: 0 | AP53: 0 | AQ53: 0 | AS53: 45 | AT53: 0.1196508978 | AU53: -20641.85993
A54: commercial discovery year | C54: =F11+F16 -> 2022 | H54: =IF(COUNT(H$10:H53)<$F$12,H53+1,"STOP") -> STOP | I54: 0 | J54: 0 | K54: 0 | L54: 0 | M54: 0 | N54: 0 | O54: 0 | P54: 0 | Q54: 0 | R54: 0 | S54: 0 | U54: 0 | V54: 0 | W54: 0 | X54: =IF(H54="STOP",0,SUM(W$10:W54)) -> 0 | Y54: 0 | Z54: STOP | AA54: =IF(SUM(Y$10:Y54)<1,1,IF(Y54=1,1,0)) -> 0 | AB54: 0 | AC54: 0 | AD54: 0 | AE54: 0 | AF54: 0 | AG54: 0 | AH54: 0 | AI54: 0 | AJ54: 0 | AK54: 0 | AL54: 0 | AM54: 0 | AN54: 0 | AO54: 0 | AP54: 0 | AQ54: 0 | AS54: 46 | AT54: -0.1070867904 | AU54: -399.448413
A55: increment rate | C55: 0.04 | AS55: 47 | AT55: 0.1313120739 | AU55: -1182.759936
A56: initial charge | B56: annual charge in year1 of licence (MM USD) | C56: 0.3 | AS56: 48 | AT56: 0.03794283003 | AU56: 366.0400815
A57: yr1 training fee | B57: year 1 training fee | C57: 0.12 | AS57: 49 | AT57: 0.1066363846 | AU57: -97.39081206
A58: comd_yr1_fee | C58: 0.15 | AS58: 50 | AT58: 0.08631457577 | AU58: -6793.27842
A59: post-production training charge % | B59: expressed as % of profit petroleum | C59: 0.0025 | AS59: 51 | AT59: 0.05774416672 | AU59: -1309.381136
A60: tech_asst bonus | B60: technical assistance yr 1 bonus | C60: 0.3 | AS60: 52 | AT60: 0.1089663294 | AU60: -9893.930705
A61: scholarship_fee | B61: yr 1 scholarship fees | C61: 0.1 | AS61: 53 | AT61: 0.1270469784 | AU61: 531.7070722
A62: ABEX | B62: cost/bbl | C62: 0.25 | AS62: 54 | AT62: 0 | AU62: -62.77039818
A63: sldep_period | B63: sl depreciation period | C63: 5 | AS63: 55 | AT63: 0.009717163599 | AU63: -617.0232399
A64: income tax rate | C64: 0.25 | AS64: 56 | AT64: 0.1175841566 | AU64: -1057.368632
A65: discount rate | C65: 0.1 | AS65: 57 | AT65: 0.101076314 | AU65: -1168.540384
AS66: 58 | AT66: 0.02042994269 | AU66: 236.340075
A67: Production Bonuses | AS67: 59 | AT67: -0.006662820727 | AU67: -648.3862233
AS68: 60 | AT68: 0.1333959363 | AU68: -4999.404329
A69: 000BPD | B69: MMUSD | AS69: 61 | AT69: 0.08573363752 | AU69: 923.6814478
A70: 25000 | B70: 1.5 | AS70: 62 | AT70: -0.08019279252 | AU70: 392.8674152
A71: 50000 | B71: 2 | AS71: 63 | AT71: 0.03673371864 | AU71: 59.53712974
A72: 75000 | B72: 3 | AS72: 64 | AT72: 0.003487062291 | AU72: -5241.305799
A73: 100000 | B73: 4 | AS73: 65 | AT73: 0.0834814386 | AU73: 858.1195341
A74: 150000 | B74: 1 | AS74: 66 | AT74: 4.533044271e-05 | AU74: -201.8998946
AS75: 67 | AT75: 0.110341313 | AU75: -917.1421042
AS76: 68 | AT76: 0.1330805388 | AU76: 531.8204008
A77: Government Take | AS77: 69 | AT77: 0.06741571283 | AU77: -1024.15208
AS78: 70 | AT78: 0.1401237314 | AU78: -918.5504372
A79: Product | B79: Production '000bpd | C79: BR | AS79: 71 | AT79: 0.04157040821 | AU79: -3243.956256
A80: oil | B80: 10 | C80: 0.58 | AS80: 72 | AT80: 0.0385221469 | AU80: 240.035521
A81: oil | B81: 75000 | C81: 0.6 | AS81: 73 | AT81: 0 | AU81: -390.8480921
A82: oil | B82: 100000 | C82: 0.78 | AS82: 74 | AT82: 0.1121240971 | AU82: 438.8372393
A83: oil | B83: 150000 | C83: 0.8 | AS83: 75 | AT83: 0.1009792188 | AU83: -178.4104169
A84: oil | B84: 200000 | C84: 0.85 | AS84: 76 | AT84: 0.09195254238 | AU84: 1433.782395
A85: gas | B85: 0 | C85: ? | AS85: 77 | AT85: 0.1058761627 | AU85: -742.5297733
A86: gas | B86: 200000 | C86: ? | AS86: 78 | AT86: 0.02381930609 | AU86: 1099.538932
A87: gas | B87: 350000 | C87: ? | AS87: 79 | AT87: 0.1032015055 | AU87: 1574.656316
A88: gas | B88: 500000 | C88: ? | AS88: 80 | AT88: 0.01072438973 | AU88: -2158.493174
A89: gas | B89: 750000 | C89: ? | AS89: 81 | AT89: -0.03405945464 | AU89: 23.79676362
A90: gas | B90: 1000000 | C90: ? | AS90: 82 | AT90: 0.1385605042 | AU90: -265.3710855
AS91: 83 | AT91: 0.1291710731 | AU91: 271.2386885
AS92: 84 | AT92: 0.1062767887 | AU92: -309.5271336
AS93: 85 | AT93: 0.008543102593 | AU93: 223.4361538
AS94: 86 | AT94: -0.02000380306 | AU94: 613.2696259
AS95: 87 | AT95: 0.1339386861 | AU95: 880.4588181
AS96: 88 | AT96: 0.1106699709 | AU96: -12073.83672
AS97: 89 | AT97: 0.1244793176 | AU97: -12478.24943
AS98: 90 | AT98: -3.996802889e-15 | AU98: -228.7130164
AS99: 91 | AT99: -0.1045702319 | AU99: -13929.32837
AS100: 92 | AT100: -0.02035261036 | AU100: -515.2456673
AS101: 93 | AT101: 0.009330656229 | AU101: -413.635684
AS102: 94 | AT102: 0.1363966227 | AU102: -3827.736454
AS103: 95 | AT103: 0.03922503855 | AU103: -3377.701488
AS104: 96 | AT104: 0.1310360348 | AU104: -1035.330803
AS105: 97 | AT105: -0.09827510709 | AU105: -77.16023191
AS106: 98 | AT106: 0.1378057761 | AU106: -373.7995978
AS107: 99 | AT107: 0.1286202508 | AU107: -775.1170491
AS108: 100 | AT108: 0.01968914441 | AU108: -1043.45008
AS109: 101 | AT109: 0.1123641736 | AU109: -535.8858549
AS110: 102 | AT110: -0.09595668633 | AU110: -3851.919668
AS111: 103 | AT111: 0.1314095899 | AU111: -4087.287596
AS112: 104 | AT112: 0.1234857554 | AU112: -3435.789167
AS113: 105 | AT113: 0.1252765646 | AU113: -9954.85917
AS114: 106 | AT114: 0.1225384757 | AU114: -239.7922023
AS115: 107 | AT115: 0.1302905432 | AU115: -1929.653158
AS116: 108 | AT116: 0.1398441835 | AU116: 293.7038637
AS117: 109 | AT117: 0.1149988727 | AU117: -474.1701519
AS118: 110 | AT118: 0.1237708275 | AU118: -1242.103921
AS119: 111 | AT119: 0.1363171477 | AU119: 43.11153638
AS120: 112 | AT120: 0.1372882936 | AU120: 1134.600059
AS121: 113 | AT121: -0.09424388456 | AU121: -1395.147398
AS122: 114 | AT122: 0.03813319375 | AU122: 212.7511766
AS123: 115 | AT123: -0.04065333492 | AU123: -15796.27967
AS124: 116 | AT124: 0.1065932404 | AU124: -588.4475408
AS125: 117 | AT125: -0.002251689847 | AU125: 1148.287257
AS126: 118 | AT126: 0.1229599225 | AU126: -2196.221549
AS127: 119 | AT127: 0.08406188128 | AU127: 190.48914
AS128: 120 | AT128: 0.1056304654 | AU128: -19115.85176
AS129: 121 | AT129: 0 | AU129: -552.9294306
AS130: 122 | AT130: 0.03033899568 | AU130: -959.5856202
AS131: 123 | AT131: 0.1170064076 | AU131: 70.49506233
AS132: 124 | AT132: 0.04213250279 | AU132: -536.8238615
AS133: 125 | AT133: 0.04147688477 | AU133: -278.2303589
AS134: 126 | AT134: 0.1258456862 | AU134: -137.3310994
AS135: 127 | AT135: 0.05539156021 | AU135: -4424.46094
AS136: 128 | AT136: 0.05097115496 | AU136: -1911.303395
AS137: 129 | AT137: 0.1342532403 | AU137: 880.2408914
AS138: 130 | AT138: 0.1313519814 | AU138: -23108.6447
AS139: 131 | AT139: 0.136435635 | AU139: 424.6160083
AS140: 132 | AT140: 0.1283275045 | AU140: 219.011772
AS141: 133 | AT141: -0.1070428368 | AU141: 526.1229825
AS142: 134 | AT142: -0.1050013462 | AU142: 215.2366807
AS143: 135 | AT143: 0.137117377 | AU143: -808.7054949
AS144: 136 | AT144: 0.001968014463 | AU144: -4104.673027
AS145: 137 | AT145: -0.0135477049 | AU145: 255.7421011
AS146: 138 | AT146: 0.1153635353 | AU146: -15760.8988
AS147: 139 | AT147: 0.1309636287 | AU147: -22267.12213
AS148: 140 | AT148: 0.1002628356 | AU148: -784.1448476
AS149: 141 | AT149: 0.1327792185 | AU149: -13009.37048
AS150: 142 | AT150: -0.07486007258 | AU150: 1691.470407
AS151: 143 | AT151: 0.08585597614 | AU151: -833.6976223
AS152: 144 | AT152: 0.1331468394 | AU152: -6659.427445
AS153: 145 | AT153: -0.03595280288 | AU153: -7033.251433
AS154: 146 | AT154: -0.1052658244 | AU154: -306.5428591
AS155: 147 | AT155: -0.07237074961 | AU155: 61.72814134
AS156: 148 | AT156: -0.07266672576 | AU156: -1399.281597
AS157: 149 | AT157: 0.1241018742 | AU157: -7242.736935
AS158: 150 | AT158: 0.1220816796 | AU158: 1168.922659
AS159: 151 | AT159: 0.03462888098 | AU159: -5403.138227
AS160: 152 | AT160: 0.1393891073 | AU160: -4513.671714
AS161: 153 | AT161: 0.1143191506 | AU161: -394.7073447
AS162: 154 | AT162: 0.1313827833 | AU162: -989.0002605
AS163: 155 | AT163: 0.1364994793 | AU163: -99.78556751
AS164: 156 | AT164: 0.01326652465 | AU164: -15802.79161
AS165: 157 | AT165: 0.01794751322 | AU165: -7469.30442
AS166: 158 | AT166: -0.01812928736 | AU166: -1434.288404
AS167: 159 | AT167: 0.1105623629 | AU167: -3089.022531
AS168: 160 | AT168: 0.1328076155 | AU168: -692.7884461
AS169: 161 | AT169: -0.03809635871 | AU169: -580.3870846
AS170: 162 | AT170: 0.07254875154 | AU170: -936.4228698
AS171: 163 | AT171: 0 | AU171: -567.2476711
AS172: 164 | AT172: 0.08903131534 | AU172: -48.9825146
AS173: 165 | AT173: 0.0883622574 | AU173: 795.4215076
AS174: 166 | AT174: 0.1242311817 | AU174: -3374.178473
AS175: 167 | AT175: 0.1272229566 | AU175: -4223.157348
AS176: 168 | AT176: 0.01399216261 | AU176: -259.7252792
AS177: 169 | AT177: 0.07848031447 | AU177: 655.9333489
AS178: 170 | AT178: 0.1062708985 | AU178: -9371.948349
AS179: 171 | AT179: 0.1260230792 | AU179: -125.7684342
AS180: 172 | AT180: 0.008265157381 | AU180: -533.7543637
AS181: 173 | AT181: 0.1115009211 | AU181: -11520.67247
AS182: 174 | AT182: 0.1156732949 | AU182: 1282.462996
AS183: 175 | AT183: 0.08880375018 | AU183: -3910.054215
AS184: 176 | AT184: -0.08519482492 | AU184: -1926.557851
AS185: 177 | AT185: 0.08875485614 | AU185: 82.58418448
AS186: 178 | AT186: -0.01100673917 | AU186: 633.9284453
AS187: 179 | AT187: -0.03086808668 | AU187: -3793.940144
AS188: 180 | AT188: 0.08746993323 | AU188: -4209.1282
AS189: 181 | AT189: -0.01513775471 | AU189: -1236.005876
AS190: 182 | AT190: 0.1392196029 | AU190: -1563.323772
AS191: 183 | AT191: -0.1011991019 | AU191: -2149.440722
AS192: 184 | AT192: 0.1385566802 | AU192: -10293.73145
AS193: 185 | AT193: -0.1053921237 | AU193: -459.1065071
AS194: 186 | AT194: 0.1208860483 | AU194: -51.81020569
AS195: 187 | AT195: -0.1033551084 | AU195: -63.80831804
AS196: 188 | AT196: -0.1017253212 | AU196: -4529.117601
AS197: 189 | AT197: -0.1066782046 | AU197: -4770.151886
AS198: 190 | AT198: -0.03366182558 | AU198: 250.0429915
AS199: 191 | AT199: 0.0835616906 | AU199: 220.4366522
AS200: 192 | AT200: -0.1000048758 | AU200: -141.2463014
AS201: 193 | AT201: 0.07107364215 | AU201: 174.1255439
AS202: 194 | AT202: 0.09086227463 | AU202: 1669.90245
AS203: 195 | AT203: 0.06778425874 | AU203: 387.6280506
AS204: 196 | AT204: 0.1036267952 | AU204: 122.3308602
... 185 more rows
